bitfinex/quotes_SOLUSD_20251224
["timestamp","ask_amount","ask_price","bid_price","bid_amount"]
[1766586244336,17.38886055,122.03,121.99,0.66]
[1766586244640,1.82886055,122.02,121.99,0.66]
[1766586245037,16.80886055,122.03,121.99,0.66]
[1766586245336,1.82886055,122.03,121.99,0.66]
[1766586245714,53.75804734,122.04,122.0,0.66]
[1766586245917,12.26653351,122.04,122.01,0.66]
[1766586246117,10.43767296,122.04,122.01,8.85600662]
[1766586246430,10.43767296,122.04,122.02,0.66]
[1766586249044,17.81474543,122.05,122.02,0.66]
[1766586249543,18.39474543,122.05,122.02,0.66]
[1766586250425,17.81474543,122.05,122.02,0.66]
[1766586250830,2.85474543,122.05,122.02,0.66]
[1766586251027,13.87241839,122.06,122.02,0.66]
[1766586251344,0.58,122.05,122.02,0.66]
[1766586252039,3.43474543,122.05,122.02,0.66]
[1766586252839,3.43474543,122.05,122.02,8.85535429]
[1766586253923,3.43474543,122.05,122.02,8.19535429]
[1766586254130,3.43474543,122.05,122.03,0.68]
[1766586254448,3.43474543,122.05,122.02,8.87535429]
[1766586254632,10.43767296,122.06,122.03,0.68]
[1766586254633,13.87241839,122.06,122.03,0.68]
[1766586255144,13.87241839,122.06,122.02,0.68]
[1766586255145,3.43474543,122.05,122.02,0.68]
[1766586255330,3.43474543,122.04,122.02,0.68]
[1766586255534,2.85474543,122.04,122.02,0.68]
[1766586258055,0.58,122.05,122.02,0.68]
[1766586258354,3.43474543,122.05,122.02,0.68]
[1766586261251,3.43474543,122.05,122.0,2.85474543]
[1766586261252,3.43474543,122.03,122.0,8.8765989]
[1766586261453,11.01767296,122.03,122.0,8.1965989]
[1766586261644,10.43767296,122.03,122.01,0.68]
[1766586265457,0.58,122.04,122.01,0.68]
[1766586265658,10.43767296,122.04,122.02,0.68]
[1766586270463,13.87241839,122.04,122.02,0.68]
[1766586270661,3.43474543,122.03,122.0,0.68]
[1766586271060,2.85474543,122.03,122.0,0.68]
[1766586271660,2.85474543,122.03,121.97,77.86]
[1766586271855,3.43474543,122.02,121.99,0.68]
[1766586272457,2.85474543,122.01,121.99,0.68]
[1766586273046,3.43474543,122.01,121.98,0.68]
[1766586273457,2.85474543,122.01,121.99,0.68]
[1766586274874,3.43474543,122.02,121.99,0.68]
[1766586275550,14.96,122.03,121.99,0.68]
[1766586275761,2.85474543,122.02,121.99,0.68]
[1766586276271,3.43474543,122.02,121.99,0.68]
[1766586278068,18.39474543,122.03,121.99,0.68]
[1766586278275,14.96,122.03,122.0,0.69]
[1766586278470,15.54,122.03,122.0,0.69]
[1766586280348,0.58,122.03,122.0,0.69]
[1766586280558,10.43767296,122.04,122.01,0.69]
[1766586281374,11.01767296,122.04,122.01,0.69]
[1766586284457,13.87241839,122.04,122.01,0.69]
[1766586285495,3.43474543,122.03,122.0,0.69]
[1766586286574,2.85474543,122.03,122.0,0.69]
[1766586286753,13.87241839,122.04,122.0,0.69]
[1766586291292,13.87241839,122.04,122.01,0.69]
[1766586294483,28.25241839,122.04,122.01,0.69]
[1766586294992,28.83241839,122.04,122.01,0.69]
[1766586295865,25.39767296,122.04,122.01,0.69]
[1766586296674,28.25241839,122.04,122.01,0.69]
[1766586297071,10.43767296,122.04,122.02,0.69]
[1766586297292,10.43767296,122.05,122.03,0.69]
[1766586297475,18.39474543,122.07,122.03,0.69]
[1766586297792,28.83241839,122.07,122.03,0.69]
[1766586297992,14.96,122.07,122.04,0.69]
[1766586299496,18.39474543,122.07,122.04,0.69]
[1766586300307,0.58,122.06,122.02,3.54474543]
[1766586300482,3.43474543,122.06,122.03,8.88457148]
[1766586300794,18.39474543,122.07,122.04,0.69]
[1766586301190,15.54,122.07,122.04,0.69]
[1766586301580,18.39474543,122.07,122.04,0.69]
[1766586301781,15.54,122.07,122.04,0.69]
[1766586301981,18.39474543,122.07,122.04,0.69]
[1766586302698,3.43474543,122.07,122.04,0.69]
[1766586303003,18.39474543,122.07,122.04,0.69]
[1766586303388,17.81474543,122.07,122.04,0.69]
[1766586303903,14.96,122.07,122.04,0.69]
[1766586305100,14.96,122.07,122.05,0.69]
[1766586305289,15.54,122.07,122.04,8.88402701]
[1766586306704,0.58,122.07,122.04,8.88402701]
[1766586306896,15.54,122.07,122.04,8.88402701]
[1766586310086,17.36619561,122.07,122.04,0.69]
[1766586311705,15.54,122.07,122.04,0.69]
[1766586311886,17.36619561,122.07,122.04,0.69]
[1766586312086,15.54,122.07,122.04,0.69]
[1766586312410,17.36619561,122.07,122.04,0.69]
[1766586313721,0.58,122.06,122.03,8.9144447]
[1766586314610,0.58,122.07,122.04,0.72]
[1766586314812,2.40619561,122.07,122.04,0.72]
[1766586315013,0.58,122.07,122.04,0.72]
[1766586315802,10.43767296,122.08,122.05,0.72]
[1766586316008,25.39767296,122.08,122.05,0.72]
[1766586316593,25.97767296,122.08,122.05,0.72]
[1766586316795,25.39767296,122.08,122.05,8.19308583]
[1766586317004,12.84386857,122.1,122.06,0.72]
[1766586317309,25.39767296,122.1,122.07,0.72]
[1766586317510,27.80386857,122.1,122.07,0.72]
[1766586319202,1.82619561,122.09,122.07,0.72]
[1766586329523,0.58,122.08,122.04,10.01877926]
[1766586329737,2.40619561,122.08,122.05,0.72]
[1766586330023,1.82619561,122.08,122.05,0.72]
[1766586331200,0.58,122.09,122.05,0.72]
[1766586331415,1.82619561,122.08,122.05,0.72]
[1766586332027,2.40619561,122.07,122.04,0.72]
[1766586332322,1.82619561,122.06,122.04,0.72]
[1766586333929,2.40619561,122.06,122.03,8.91459272]
[1766586334307,2.40619561,122.06,122.04,0.72]
[1766586334824,2.40619561,122.06,122.02,8.1953778]
[1766586335034,2.40619561,122.06,122.03,0.72]
[1766586336837,2.40619561,122.05,122.02,0.72]
[1766586341933,12.84386857,122.05,122.02,0.72]
[1766586342137,2.40619561,122.04,122.01,0.7]
[1766586349440,0.58,122.04,122.01,0.7]
[1766586351338,16.78619561,122.05,122.01,0.7]
[1766586351536,17.36619561,122.05,122.01,0.7]
[1766586352329,16.78619561,122.05,122.01,0.7]
[1766586352515,0.58,122.04,122.01,0.7]
[1766586353942,19.21424308,122.06,122.02,0.7]
[1766586354244,12.84386857,122.06,122.02,0.7]
[1766586354447,0.58,122.05,122.02,0.7]
[1766586354647,2.40619561,122.05,122.02,0.7]
[1766586365543,1.82619561,122.05,122.02,0.7]
[1766586365877,2.40619561,122.05,122.02,0.7]
[1766586366180,0.58,122.05,122.02,0.7]
[1766586366468,2.40619561,122.05,122.02,0.7]
[1766586369993,3.43458189,122.05,122.02,0.7]
[1766586374379,10.43767296,122.06,122.04,0.66]
[1766586375273,3.43458189,122.05,122.02,0.66]
[1766586375879,11.01767296,122.06,122.03,0.66]
[1766586376182,2.85458189,122.05,122.03,0.66]
[1766586376562,11.01767296,122.06,122.03,0.66]
[1766586376563,13.87225485,122.06,122.03,0.66]
[1766586382874,28.83225485,122.06,122.03,0.66]
[1766586392397,0.58,122.05,122.02,0.66]
[1766586392601,28.25225485,122.06,122.02,0.66]
[1766586392901,28.83225485,122.06,122.02,0.66]
[1766586393802,25.97767296,122.06,122.02,0.66]
[1766586394099,28.83225485,122.06,122.02,0.66]
[1766586397578,2.85458189,122.05,122.02,0.66]
[1766586398974,3.43458189,122.05,122.02,0.66]
[1766586401506,2.85458189,122.04,122.02,0.66]
[1766586402006,3.43458189,122.05,122.02,0.66]
[1766586402203,3.43458189,122.04,121.99,14.96]
[1766586402407,2.85458189,122.03,122.0,0.67]
[1766586403695,18.39458189,122.04,122.0,0.67]
[1766586412621,17.81458189,122.04,122.0,0.67]
[1766586412842,0.58,122.03,122.0,0.67]
[1766586413209,18.39458189,122.04,122.0,0.67]
[1766586414506,3.43458189,122.03,122.0,0.67]
[1766586416100,0.58,122.03,122.0,0.67]
[1766586420128,2.85458189,122.03,121.98,8.19774601]
[1766586420426,0.58,122.02,121.99,0.67]
[1766586421211,3.43458189,122.02,121.99,0.67]
[1766586424219,0.58,122.01,121.98,0.67]
[1766586425727,18.39458189,122.02,121.98,0.67]
[1766586426231,2.85458189,122.02,121.98,0.67]
[1766586427625,54.20376868,122.03,121.98,11.05235989]
[1766586427937,54.20376868,122.03,121.99,0.69]
[1766586430035,54.20376868,122.03,121.99,8.88738653]
[1766586430347,54.20376868,122.03,122.0,0.69]
[1766586432040,53.17672966,122.03,122.0,0.69]
[1766586432338,53.17672966,122.03,121.99,0.69]
[1766586438128,1.82754287,122.02,121.99,0.69]
[1766586438642,53.17672966,122.03,121.99,0.69]
[1766586443045,28.17672966,122.03,121.99,0.69]
[1766586445137,38.61440262,122.03,121.99,0.69]
[1766586447358,36.78685975,122.03,122.0,0.69]
[1766586449636,38.61440262,122.03,122.0,0.69]
[1766586452560,1.82754287,122.01,121.98,15.65]
[1766586452950,1.82754287,122.0,121.98,15.65]
[1766586453342,1.82754287,122.0,121.98,0.69]
[1766586453534,1.82754287,122.0,121.96,8.19902456]
[1766586453857,1.82754287,121.98,121.96,0.69]
[1766586455337,36.88464055,121.99,121.96,0.69]
[1766586456566,1.82754287,121.98,121.96,0.69]
[1766586459640,36.88464055,121.99,121.96,0.69]
[1766586459841,10.43767296,121.99,121.96,0.69]
[1766586460453,8.99767296,121.97,121.95,8.40006829]
[1766586460660,8.99767296,121.97,121.96,0.68]
[1766586462745,11.15767296,121.98,121.96,0.68]
[1766586464068,10.43767296,121.97,121.96,0.68]
[1766586469279,0.66,121.98,121.95,0.92]
[1766586469656,2.48754287,121.98,121.95,0.92]
[1766586469869,0.66,121.98,121.95,0.92]
[1766586470659,0.66,121.98,121.95,9.12007305]
[1766586471766,0.66,121.98,121.95,0.92]
[1766586472680,0.66,121.97,121.95,0.2]
[1766586473074,0.66,121.97,121.95,0.92]
[1766586473480,10.43767296,121.96,121.95,0.92]
[1766586475389,8.99767296,121.96,121.95,0.22]
[1766586475565,8.97767296,121.96,121.95,0.22]
[1766586476476,8.97767296,121.96,121.95,0.2]
[1766586480184,10.43767296,121.96,121.94,0.1]
[1766586480382,10.43767296,121.96,121.93,0.1]
[1766586480383,0.66,121.95,121.93,0.1]
[1766586480591,0.66,121.94,121.93,0.1]
[1766586481274,0.66,121.95,121.93,0.1]
[1766586481464,12.26521583,121.94,121.93,0.1]
[1766586481671,12.92521583,121.94,121.92,0.1]
[1766586481869,0.66,121.93,121.92,0.1]
[1766586482067,12.92521583,121.93,121.92,0.1]
[1766586482275,11.09767296,121.93,121.92,0.1]
[1766586483390,12.92521583,121.93,121.92,0.1]
[1766586484377,2.48754287,121.93,121.92,0.1]
[1766586485195,2.48754287,121.93,121.89,15.18]
[1766586485196,0.66,121.92,121.89,15.18]
[1766586485396,0.66,121.92,121.89,23.38411197]
[1766586485698,0.66,121.93,121.9,0.2]
[1766586485889,0.66,121.92,121.89,23.38411197]
[1766586486385,2.48754287,121.92,121.89,23.38411197]
[1766586486589,0.66,121.92,121.89,23.38411197]
[1766586487586,0.7,121.9,121.86,17.10754287]
[1766586487777,2.52754287,121.9,121.87,0.2]
[1766586488099,1.82754287,121.9,121.87,0.2]
[1766586488298,1.82754287,121.9,121.86,23.28576926]
[1766586489781,2.52754287,121.9,121.86,23.28576926]
[1766586489997,2.52754287,121.9,121.86,15.08]
[1766586490188,12.96521583,121.9,121.86,15.08]
[1766586490388,0.7,121.89,121.86,15.08]
[1766586490590,0.7,121.89,121.86,23.28588112]
[1766586491598,11.13767296,121.89,121.86,23.28588112]
[1766586492092,11.13767296,121.89,121.86,15.08]
[1766586492988,0.7,121.87,121.84,0.1]
[1766586493214,0.7,121.86,121.84,0.1]
[1766586493907,10.43767296,121.87,121.84,0.1]
[1766586493908,10.43767296,121.87,121.85,11.16854544]
[1766586494408,10.43767296,121.87,121.85,8.30659164]
[1766586494613,11.13767296,121.87,121.84,0.2]
[1766586495608,11.13767296,121.87,121.84,11.26940104]
[1766586496505,11.13767296,121.87,121.84,0.2]
[1766586497004,11.13767296,121.87,121.84,8.4074628]
[1766586497308,11.13767296,121.87,121.84,0.1]
[1766586497610,0.7,121.86,121.84,0.1]
[1766586498910,10.43767296,121.86,121.84,0.2]
[1766586499614,11.13767296,121.86,121.84,0.1]
[1766586501195,10.43767296,121.86,121.85,0.1]
[1766586501387,11.06692848,121.88,121.85,2.8619538]
[1766586501715,11.06692848,121.88,121.85,17.8419538]
[1766586501902,29.91114059,121.9,121.85,17.8419538]
[1766586502110,0.7,121.89,121.85,14.98]
[1766586502288,0.7,121.89,121.85,17.8419538]
[1766586502504,29.21114059,121.9,121.85,17.8419538]
[1766586502711,0.7,121.89,121.85,17.8419538]
[1766586503216,0.7,121.89,121.85,26.04857178]
[1766586503514,2.8619538,121.95,121.89,0.7]
[1766586503684,24.63155301,121.94,121.91,0.7]
[1766586503995,24.63155301,121.94,121.89,3.5619538]
[1766586503996,10.43767296,121.93,121.89,3.5619538]
[1766586504198,10.43767296,121.93,121.9,0.7]
[1766586504397,10.43767296,121.91,121.89,2.8619538]
[1766586505289,10.43767296,121.91,121.88,26.74629233]
[1766586507119,10.43767296,121.91,121.88,23.88433853]
[1766586507317,10.43767296,121.91,121.88,26.74629233]
[1766586509523,10.43767296,121.91,121.89,2.8619538]
[1766586511222,11.13767296,121.91,121.88,18.5419538]
[1766586511802,11.13767296,121.91,121.88,26.74672541]
[1766586512546,11.13767296,121.91,121.89,2.8619538]
[1766586514535,11.13767296,121.91,121.88,26.74672541]
[1766586514839,10.43767296,121.91,121.89,11.76592863]
[1766586515044,10.43767296,121.91,121.9,2.8619538]
[1766586516017,10.43767296,121.91,121.89,11.76592863]
[1766586516215,11.13767296,121.91,121.88,18.5419538]
[1766586516639,11.13767296,121.91,121.88,26.74673192]
[1766586516968,10.43767296,121.91,121.89,3.5419538]
[1766586517247,11.10767296,121.91,121.89,11.74606733]
[1766586520149,37.48685975,121.95,121.89,11.06606733]
[1766586520446,10.43767296,121.92,121.91,3.5419538]
[1766586520836,10.43767296,121.92,121.91,0.68]
[1766586521452,10.43767296,121.92,121.9,18.5219538]
[1766586521851,0.67,121.93,121.9,18.5219538]
[1766586522222,11.10767296,121.93,121.9,26.72493563]
[1766586523447,11.10767296,121.93,121.91,11.06463369]
[1766586523646,10.43767296,121.93,121.91,11.74463369]
[1766586523867,11.10767296,121.94,121.91,11.74463369]
[1766586524425,10.43767296,121.94,121.91,3.5419538]
[1766586524628,11.10767296,121.94,121.91,3.5419538]
[1766586524873,0.67,121.93,121.91,2.8619538]
[1766586525038,0.67,121.93,121.9,8.88328312]
[1766586525349,0.67,121.93,121.9,26.04523692]
[1766586525754,0.67,121.93,121.9,14.98]
[1766586526454,0.67,121.93,121.9,18.5219538]
[1766586526955,0.67,121.93,121.9,14.98]
[1766586527728,0.67,121.93,121.9,15.66]
[1766586529938,0.67,121.93,121.9,26.72516988]
[1766586535847,0.67,121.95,121.91,3.5419538]
[1766586536161,10.43767296,121.94,121.92,18.5219538]
[1766586540084,10.43767296,121.94,121.92,15.66]
[1766586540376,0.67,121.93,121.92,14.98]
[1766586540977,0.67,121.93,121.9,15.66]
[1766586541586,0.67,121.93,121.9,18.5219538]
[1766586541789,0.67,121.93,121.9,26.72535547]
[1766586544377,0.67,121.93,121.91,2.8619538]
[1766586544587,0.67,121.93,121.91,3.5419538]
[1766586544873,0.67,121.93,121.91,0.68]
[1766586545086,0.67,121.93,121.9,26.72535547]
[1766586545557,0.67,121.93,121.9,23.86340167]
[1766586545881,0.67,121.93,121.9,11.74535547]
[1766586546266,11.10767296,121.94,121.91,3.5419538]
[1766586547366,11.10767296,121.94,121.91,11.74440753]
[1766586551483,0.71,121.93,121.91,11.74440753]
[1766586551884,0.71,121.93,121.91,8.88245373]
[1766586552083,0.71,121.93,121.91,11.74440753]
[1766586552267,0.71,121.93,121.91,8.20245373]
[1766586555096,0.71,121.93,121.9,10.73296528]
[1766586556491,0.71,121.93,121.9,2.52983145]
[1766586556693,0.71,121.93,121.9,10.73326775]
[1766586563197,0.71,121.93,121.9,10.03326775]
[1766586563496,11.14767296,121.94,121.91,2.52983145]
[1766586564380,0.71,121.93,121.91,2.52983145]
[1766586564697,0.71,121.93,121.91,10.73257794]
[1766586564994,10.43767296,121.94,121.91,8.90274649]
[1766586565193,0.71,121.93,121.91,8.90274649]
[1766586565394,0.71,121.93,121.9,10.7332441]
[1766586571202,0.71,121.93,121.9,8.90341265]
[1766586571405,0.71,121.93,121.9,10.7332441]
[1766586579989,11.14767296,121.93,121.9,10.7332441]
[1766586580195,11.14767296,121.93,121.9,8.90341265]
[1766586580910,11.14767296,121.93,121.9,10.7332441]
[1766586583115,11.14767296,121.93,121.9,8.90341265]
[1766586583411,11.14767296,121.93,121.9,10.7332441]
[1766586585507,11.14767296,121.93,121.9,8.90341265]
[1766586586101,11.14767296,121.93,121.9,10.7332441]
[1766586586401,11.14767296,121.93,121.9,8.90341265]
[1766586586698,10.43767296,121.93,121.9,8.90341265]
[1766586586900,11.13767296,121.93,121.9,8.90341265]
[1766586590018,11.13767296,121.93,121.9,10.7332441]
[1766586593015,11.13767296,121.93,121.9,8.90341265]
[1766586594925,0.7,121.92,121.9,8.90341265]
[1766586599421,0.7,121.92,121.9,10.7332441]
[1766586600415,0.7,121.92,121.89,10.73393973]
[1766586600614,0.7,121.9,121.86,8.20552904]
[1766586600922,0.7,121.9,121.85,8.20678373]
[1766586600923,0.7,121.88,121.85,8.20678373]
[1766586601122,0.7,121.88,121.85,8.90678373]
[1766586601321,25.41767296,121.9,121.87,1.82983145]
[1766586601322,10.43767296,121.9,121.87,1.82983145]
[1766586601627,10.43767296,121.9,121.85,28.72381286]
[1766586601628,15.68,121.91,121.88,1.82983145]
[1766586601804,10.43767296,121.91,121.89,0.7]
[1766586602004,15.68,121.94,121.9,1.82983145]
[1766586602230,15.68,121.94,121.91,1.82983145]
[1766586602530,2.52983145,121.95,121.91,1.82983145]
[1766586602731,2.52983145,121.95,121.92,8.20209973]
[1766586603303,1.82983145,121.94,121.9,9.02361035]
[1766586603508,2.52983145,121.93,121.9,8.20296405]
[1766586603734,2.52983145,121.93,121.88,22.3412196]
[1766586603735,0.7,121.93,121.91,8.20272318]
[1766586604317,10.43767296,121.94,121.91,8.20272318]
[1766586604722,12.26750441,121.94,121.9,8.20344544]
[1766586604913,10.43767296,121.94,121.89,8.20411846]
[1766586605220,1.82983145,121.92,121.89,8.90411846]
[1766586605605,1.82983145,121.93,121.89,8.90411846]
[1766586605837,10.43767296,121.94,121.9,0.7]
[1766586606140,1.82983145,121.91,121.88,8.9045125]
[1766586606430,10.43767296,121.92,121.89,8.90410619]
[1766586606629,10.43767296,121.92,121.9,0.7]
[1766586606807,10.43767296,121.92,121.9,8.90343928]
[1766586607836,0.68,121.97,121.91,0.7]
[1766586608024,12.26750441,121.95,121.91,0.7]
[1766586608218,1.82983145,121.93,121.9,8.90343928]
[1766586608536,1.82983145,121.93,121.9,8.20343928]
[1766586608537,0.68,121.92,121.9,8.20343928]
[1766586608733,0.68,121.93,121.9,8.90343928]
[1766586610727,0.68,121.94,121.91,0.7]
[1766586611242,0.68,121.92,121.89,0.7]
[1766586611536,0.68,121.92,121.89,2.52983145]
[1766586611844,0.68,121.91,121.87,2.52983145]
[1766586612021,0.68,121.91,121.89,8.20407434]
[1766586612920,0.68,121.91,121.86,2.52983145]
[1766586612921,0.68,121.9,121.86,2.52983145]
[1766586613114,0.68,121.88,121.85,8.9064277]
[1766586613643,0.68,121.87,121.84,0.1]
[1766586614540,0.68,121.87,121.84,8.30744961]
[1766586614911,0.68,121.87,121.84,11.87004104]
[1766586615327,0.68,121.87,121.84,8.30744961]
[1766586615838,0.68,121.87,121.84,11.17004104]
[1766586616013,10.43767296,121.89,121.86,3.56259143]
[1766586616429,11.11767296,121.89,121.86,3.56259143]
[1766586617242,11.11767296,121.89,121.87,11.06805626]
[1766586617721,10.43767296,121.89,121.87,11.06805626]
[1766586617923,0.68,121.96,121.88,2.86259143]
[1766586618133,0.68,121.93,121.9,2.86259143]
[1766586618336,11.11767296,121.93,121.9,2.86259143]
[1766586618738,0.68,121.93,121.89,3.56259143]
[1766586619149,0.68,121.93,121.89,11.76620077]
[1766586619333,11.11767296,121.93,121.89,11.76620077]
[1766586620727,11.11767296,121.93,121.9,2.86259143]
[1766586621045,10.43767296,121.92,121.89,11.76620077]
[1766586621240,11.11767296,121.92,121.89,11.76620077]
[1766586621624,11.11767296,121.92,121.9,2.86259143]
[1766586622429,0.68,121.96,121.91,2.86259143]
[1766586622643,0.68,121.96,121.93,2.86259143]
[1766586622847,10.43767296,121.95,121.92,3.56259143]
[1766586623352,11.11767296,121.95,121.92,11.76433769]
[1766586624239,10.43767296,121.94,121.91,11.06518432]
[1766586624442,0.68,121.93,121.91,11.06518432]
[1766586624737,10.43767296,121.94,121.9,11.76585351]
[1766586624738,11.11767296,121.94,121.9,11.76585351]
[1766586625446,11.11767296,121.94,121.91,11.0653077]
[1766586625624,11.11767296,121.94,121.92,2.86259143]
[1766586626244,11.11767296,121.94,121.91,8.90271627]
[1766586626446,11.11767296,121.94,121.91,11.7653077]
[1766586627168,11.06246336,121.96,121.91,2.86259143]
[1766586627326,0.68,121.93,121.89,2.86259143]
[1766586627521,2.86259143,121.93,121.89,8.20376267]
[1766586627723,0.68,121.91,121.88,8.90466494]
[1766586627951,0.68,121.91,121.88,11.76725637]
[1766586628351,0.68,121.91,121.87,11.76802586]
[1766586629152,10.43767296,121.93,121.88,3.56259143]
[1766586629345,10.43767296,121.93,121.89,3.56259143]
[1766586629346,11.11767296,121.93,121.89,3.56259143]
[1766586629956,11.11767296,121.93,121.9,2.86259143]
[1766586630750,0.68,121.92,121.89,11.76663062]
[1766586631449,0.68,121.92,121.89,8.20403919]
[1766586631644,0.68,121.92,121.88,31.57869815]
[1766586631840,0.68,121.92,121.88,32.27869815]
[1766586632433,2.86259143,121.92,121.88,8.20479159]
[1766586632652,0.68,121.91,121.87,11.76780136]
[1766586633047,0.68,121.91,121.87,8.90520993]
[1766586633533,0.68,121.91,121.87,11.76780136]
[1766586633930,0.68,121.9,121.87,8.90520993]
[1766586634163,0.68,121.89,121.86,2.86259143]
[1766586634329,0.68,121.89,121.86,3.56259143]
[1766586634528,0.68,121.89,121.86,11.76813065]
[1766586634938,0.68,121.89,121.87,8.20534902]
[1766586635139,10.43767296,121.9,121.88,0.7]
[1766586635539,10.43767296,121.9,121.87,8.90534902]
[1766586635729,11.11767296,121.9,121.87,11.76794045]
[1766586636148,10.43767296,121.9,121.87,8.20534902]
[1766586636356,0.68,121.89,121.85,0.7]
[1766586636555,0.68,121.87,121.84,0.1]
[1766586636735,3.54259143,121.87,121.84,0.1]
[1766586637156,0.68,121.86,121.84,0.1]
[1766586637455,0.68,121.86,121.84,8.3073955]
[1766586637856,0.68,121.86,121.84,0.1]
[1766586639838,0.71,121.84,121.8,0.7]
[1766586640043,0.71,121.84,121.81,8.90909437]
[1766586640959,3.57259143,121.84,121.8,8.90997726]
[1766586641368,0.71,121.84,121.8,11.77256869]
[1766586641562,13.30026439,121.85,121.78,3.56259143]
[1766586641563,0.71,121.82,121.78,3.56259143]
[1766586641865,0.71,121.81,121.78,8.91126292]
[1766586642038,11.14767296,121.81,121.78,8.91126292]
[1766586644461,0.71,121.84,121.79,3.56259143]
[1766586644638,10.43767296,121.82,121.79,3.56259143]
[1766586645034,0.71,121.83,121.8,2.86259143]
[1766586645376,0.71,121.82,121.8,2.86259143]
[1766586645539,0.71,121.82,121.79,3.56259143]
[1766586645857,11.14767296,121.83,121.79,3.56259143]
[1766586646268,3.57259143,121.85,121.81,0.7]
[1766586646565,11.14767296,121.85,121.81,3.56259143]
[1766586646758,0.71,121.84,121.81,0.7]
[1766586647061,0.71,121.83,121.79,26.05315805]
[1766586647267,0.71,121.83,121.79,26.75315805]
[1766586647440,0.71,121.83,121.79,23.89056662]
[1766586647640,0.71,121.83,121.79,26.75315805]
[1766586648351,0.71,121.83,121.79,2.86259143]
[1766586648674,0.71,121.83,121.79,11.07341545]
[1766586650267,0.71,121.82,121.79,8.21082402]
[1766586651074,0.71,121.82,121.79,8.91082402]
[1766586651856,0.71,121.82,121.79,8.21082402]
[1766586652057,0.71,121.82,121.79,8.91082402]
[1766586654172,10.43767296,121.83,121.79,31.60055232]
[1766586654479,10.43767296,121.83,121.8,0.7]
[1766586654776,11.14767296,121.83,121.8,0.7]
[1766586655191,0.71,121.84,121.81,3.56259143]
[1766586656075,2.86259143,121.85,121.81,0.7]
[1766586656258,0.71,121.87,121.83,11.77075033]
[1766586656649,0.71,121.87,121.84,2.86259143]
[1766586656867,50.98883197,121.92,121.86,2.86259143]
[1766586656868,0.71,121.9,121.86,2.86259143]
[1766586657084,24.63357556,121.95,121.89,3.56259143]
[1766586657255,2.86259143,121.94,121.89,3.56259143]
[1766586657759,10.43767296,121.94,121.89,3.56259143]
[1766586657957,13.30026439,121.94,121.89,3.56259143]
[1766586658162,2.86259143,121.94,121.89,11.76650626]
[1766586658364,10.43767296,121.92,121.89,11.76650626]
[1766586658564,10.43767296,121.92,121.89,8.90391483]
[1766586658774,10.43767296,121.92,121.9,0.7]
[1766586658952,10.43767296,121.92,121.9,3.56259143]
[1766586659170,14.98,121.97,121.91,2.86259143]
[1766586659484,14.98,121.97,121.93,3.56259143]
[1766586659485,0.71,121.96,121.93,3.56259143]
[1766586659670,0.71,121.96,121.93,0.7]
[1766586660056,0.71,121.95,121.91,11.76488329]
[1766586661079,0.71,121.93,121.89,0.7]
[1766586661281,0.71,121.93,121.89,3.56259143]
[1766586661486,2.86259143,121.93,121.89,0.7]
[1766586661688,0.71,121.92,121.89,8.20395304]
[1766586661992,0.71,121.92,121.89,8.90395304]
[1766586662982,0.71,121.92,121.89,11.76654447]
[1766586663358,0.71,121.94,121.89,11.06654447]
[1766586663678,11.14767296,121.94,121.9,0.7]
[1766586663873,0.71,121.93,121.9,3.56259143]
[1766586664083,0.71,121.93,121.89,8.90395304]
[1766586664257,0.71,121.92,121.89,8.20395304]
[1766586664763,0.71,121.91,121.88,8.20468549]
[1766586665088,3.57259143,121.9,121.85,18.54259143]
[1766586665274,0.71,121.88,121.85,8.20681165]
[1766586665476,0.71,121.88,121.85,11.76940308]